fUST/lending_fUST_20251117
["ID","MTS","AMOUNT","RATE_DAILY","PERIOD"]
[394177460,1763355043352,-151.0,0.00027397,7]
[394177461,1763355043362,-151.0,0.00027397,7]
[394177462,1763355043371,-151.0,0.00027397,7]
[394177463,1763355043380,-151.0,0.00027397,7]
[394177464,1763355043390,-153.859045,0.00027397,7]
[394177465,1763355043400,-202.398932,0.00027397,7]
[394177466,1763355043409,-151.0,0.00027397,7]
[394177467,1763355043419,-151.0,0.00027397,7]
[394177468,1763355043428,-202.398932,0.00027397,7]
[394177469,1763355043438,-151.0,0.00027397,7]
[394177470,1763355043447,-151.0,0.00027397,7]
[394177472,1763355043456,-202.398932,0.00027397,7]
[394177473,1763355043465,-202.398932,0.00027397,7]
[394177474,1763355043474,-151.0,0.00027397,7]
[394177475,1763355043483,-151.0,0.00027397,7]
[394177476,1763355043492,-151.0,0.00027397,7]
[394177477,1763355043501,-151.0,0.00027397,7]
[394177478,1763355043510,-151.0,0.00027397,7]
[394177479,1763355043519,-177.917561,0.00027397,7]
[394177480,1763355043530,-151.0,0.00027397,7]
[394177481,1763355043539,-151.0,0.00027397,7]
[394177482,1763355043548,-151.0,0.00027397,7]
[394177483,1763355043557,-151.0,0.00027397,7]
[394177484,1763355043566,-151.0,0.00027397,7]
[394177485,1763355043575,-151.0,0.00027397,7]
[394177486,1763355043584,-151.0,0.00027397,7]
[394177487,1763355043593,-152.736006,0.00027397,7]
[394177488,1763355043602,-151.0,0.00027397,7]
[394177489,1763355043611,-228.356677,0.00027397,7]
[394177490,1763355043620,-151.0,0.00027397,7]
[394177491,1763355043629,-151.0,0.00027397,7]
[394177492,1763355043638,-150.0,0.00027397,5]
[394177493,1763355043647,-500.0,0.0002744,2]
[394177494,1763355043656,-660.0,0.00027614,2]
[394177495,1763355043664,-1431.38695596,0.00027858,5]
[394177496,1763355043673,-250.0,0.00027945,5]
[394177497,1763355043682,-373.19050364,0.00028019,2]
[394177498,1763355043691,-243.32266703,0.00028162,2]
[394177499,1763355043700,-1591.85,0.000283,2]
[394177500,1763355043709,-456.59346641,0.00028493,5]
[394177501,1763355043717,-500.0,0.00028535,2]
[394177502,1763355043726,-258.0,0.0002896,2]
[394177503,1763355043735,-373.56369415,0.00029325,2]
[394177504,1763355043744,-1152.0,0.00029348,2]
[394177505,1763355043753,-500.0,0.00029631,2]
[394177506,1763355043761,-1000.0,0.0002985,30]
[394177507,1763355043770,-1000.0,0.0003,14]
[394177508,1763355043779,-2000.0,0.0003,7]
[394177509,1763355043788,-500.0,0.00030727,2]
[394177510,1763355043796,-285.0,0.0003096,2]
[394177511,1763355043805,-150.0,0.00030985,2]
[394177512,1763355043814,-150.0,0.0003143,29]
[394177513,1763355043823,-150.0,0.00031499,14]
[394177514,1763355043831,-185.66243053,0.00031542,29]
[394177515,1763355043840,-184.827,0.00031542,29]
[394177516,1763355043849,-500.0,0.00031823,2]
[394177517,1763355043858,-588.0,0.00031926,2]
[394177518,1763355043869,-690.719322,0.00032222,2]
[394177520,1763355043878,-6223.91,0.000323,7]
[394177521,1763355043887,-150.0,0.00032461,2]
[394177522,1763355043895,-209.43,0.000326,7]
[394177523,1763355043905,-1000.0,0.00032835,30]
[394177524,1763355043915,-244.0,0.00032835,30]
[394177525,1763355043925,-150.0,0.00032876,31]
[394177526,1763355043934,-151.0,0.00032877,31]
[394177527,1763355043943,-150.0,0.00032877,5]
[394177528,1763355043953,-500.0,0.00032877,7]
[394177529,1763355043963,-500.0,0.00032877,7]
[394177530,1763355043972,-272.37713302,0.00032877,7]
[394177531,1763355043981,-422.34,0.000329,30]
[394177532,1763355043991,-500.0,0.00032919,2]
[394177533,1763355044001,-312.0,0.0003296,120]
[394177534,1763355044012,-349.943194,0.00033165,2]
[394177535,1763355044021,-250.0,0.00033425,5]
[394177536,1763355044029,-153.31,0.00033936,2]
[394177537,1763355044039,-350.0,0.00033973,5]
[394177538,1763355044047,-253.89987463,0.00034015,2]
[394177539,1763355044056,-1000.0,0.00034234,14]
[394177540,1763355044065,-275.69618073,0.00034243,2]
[394177541,1763355044075,-1000.0,0.00034247,5]
[394177542,1763355044084,-450.0,0.00034521,5]
[394177543,1763355044093,-339.0,0.0003496,120]
[394177544,1763355044102,-150.0,0.00034999,13]
[394177545,1763355044111,-297.0,0.00035,120]
[394177546,1763355044120,-789.94,0.00035,13]
[394177547,1763355044198,-550.0,0.00035068,5]
[394177548,1763355044208,-391.42168292,0.00035302,2]
[394177549,1763355044218,-204.41,0.00035411,2]
[394177550,1763355044227,-650.0,0.00035616,5]
[394177551,1763355044237,-1000.0,0.00036118,30]
[394177552,1763355044246,-492.0,0.00036118,30]
[394177553,1763355044256,-150.00117152,0.00036164,5]
[394177554,1763355044265,-209.43,0.000362,7]
[394177555,1763355044274,-150.0,0.00036498,15]
[394177556,1763355044283,-33165.0817193,0.00036727,2]
[394177558,1763355044293,-150.0,0.00036788,60]
[394177560,1763355044302,-255.51,0.00036887,2]
[394177562,1763355044312,-366.0,0.0003696,120]
[394177563,1763355044321,-1591.85,0.000373,14]
[394177564,1763355044330,-836.84,0.000373,14]
[394177565,1763355044340,-2992.86421681,0.00037471,2]
[394177566,1763355044350,-150.0,0.00037479,30]
[394177567,1763355044360,-179.82328667,0.00037644,5]
[394177568,1763355044370,-259.2411964,0.00037644,5]
[394177569,1763355044379,-582.46597645,0.00037644,5]
[394177570,1763355044389,-2992.86421681,0.00037799,2]
[394177571,1763355044399,-2992.86421681,0.00037924,2]
[394177572,1763355044408,-2992.86421681,0.0003817,2]
[394177573,1763355044418,-1730.5237302,0.00038253,2]
[394177574,1763355044427,-150.0,0.00038355,5]
[394177575,1763355044437,-1036.71711583,0.00038356,5]
[394177576,1763355044446,-250.0,0.00038356,5]
[394177577,1763355044456,-306.61,0.00038362,2]
[394177578,1763355044465,-203.21851301,0.00038407,30]
[394177579,1763355044474,-151.0,0.00038408,120]
[394177580,1763355044483,-151.0,0.00038408,120]
[394177581,1763355044493,-151.0,0.00038408,120]
[394177582,1763355044502,-271.274429,0.00038408,120]
[394177583,1763355044511,-151.50249,0.00038408,120]
[394177584,1763355044521,-151.0,0.00038408,120]
[394177585,1763355044530,-262.066433,0.00038408,120]
[394177586,1763355044539,-151.0,0.00038408,30]
[394177587,1763355044549,-151.0,0.00038408,30]
[394177588,1763355044558,-151.0,0.00038408,120]
[394177589,1763355044568,-151.0,0.00038408,120]
[394177590,1763355044577,-151.0,0.00038408,120]
[394177591,1763355044587,-156.542671,0.00038408,120]
[394177592,1763355044596,-151.0,0.00038408,120]
[394177593,1763355044606,-156.452658,0.00038408,120]
[394177594,1763355044616,-151.0,0.00038408,120]
[394177595,1763355044625,-151.0,0.00038408,120]
[394177596,1763355044635,-151.0,0.00038408,120]
[394177597,1763355044644,-151.0,0.00038408,120]
[394177598,1763355044654,-151.0,0.00038408,120]
[394177599,1763355044663,-151.0,0.00038408,120]
[394177600,1763355044672,-151.0,0.00038464,120]
[394177601,1763355044682,-151.0,0.00038464,120]
[394177602,1763355044691,-151.0,0.00038464,120]
[394177603,1763355044701,-498.608934,0.00038464,120]
[394177604,1763355044710,-498.608934,0.00038464,120]
[394177605,1763355044720,-151.0,0.00038464,120]
[394177606,1763355044729,-498.608934,0.00038464,120]
[394177607,1763355044739,-151.0,0.00038464,120]
[394177608,1763355044748,-293.110569,0.00038464,120]
[394177609,1763355044758,-151.0,0.00038464,120]
[394177610,1763355044767,-498.608934,0.00038464,120]
[394177611,1763355044776,-498.608934,0.00038464,120]
[394177612,1763355044786,-498.608934,0.00038464,120]
[394177613,1763355044795,-498.608934,0.00038464,120]
[394177614,1763355044804,-498.608934,0.00038464,120]
[394177615,1763355044814,-498.608934,0.00038464,120]
[394177616,1763355044823,-151.0,0.00038464,120]
[394177617,1763355044832,-151.0,0.00038464,120]
[394177618,1763355044842,-151.0,0.00038464,120]
[394177619,1763355044852,-498.608934,0.00038464,120]
[394177620,1763355044861,-498.608934,0.00038464,120]
[394177621,1763355044870,-153.459886,0.00038464,30]
[394177622,1763355044880,-498.608934,0.00038464,120]
[394177623,1763355044889,-151.0,0.00038464,120]
[394177624,1763355044899,-151.0,0.00038464,120]
[394177625,1763355044908,-298.417918,0.00038464,120]
[394177626,1763355044918,-151.0,0.00038464,120]
[394177627,1763355044927,-151.0,0.00038464,120]
[394177628,1763355044937,-151.0,0.00038464,120]
[394177629,1763355044946,-164.809455,0.00038464,120]
[394177630,1763355044956,-151.0,0.00038464,120]
[394177631,1763355044965,-151.0,0.00038464,120]
[394177632,1763355044975,-151.0,0.00038464,120]
[394177633,1763355044984,-151.0,0.00038464,120]
[394177634,1763355044994,-151.0,0.00038464,120]
[394177635,1763355045003,-151.0,0.00038464,120]
[394177636,1763355045012,-151.0,0.00038464,120]
[394177637,1763355045021,-151.0,0.00038464,120]
[394177638,1763355045031,-151.0,0.00038464,120]
[394177639,1763355045041,-150.0,0.00038464,20]
[394177640,1763355045051,-151.0,0.00038464,120]
[394177641,1763355045063,-151.0,0.00038464,120]
[394177642,1763355045072,-151.0,0.00038464,120]
[394177643,1763355045082,-202.857609,0.00038464,120]
[394177644,1763355045091,-151.0,0.00038464,120]
[394177645,1763355045101,-151.0,0.00038464,120]
[394177646,1763355045110,-151.0,0.00038464,120]
[394177647,1763355045120,-151.0,0.00038464,120]
[394177648,1763355045133,-151.0,0.00038464,120]
[394177649,1763355045142,-151.0,0.00038464,120]
[394177650,1763355045151,-151.0,0.00038464,120]
[394177651,1763355045161,-151.0,0.00038464,120]
[394177652,1763355045171,-151.0,0.00038464,120]
[394177653,1763355045180,-151.0,0.00038464,120]
[394177654,1763355045190,-151.0,0.00038464,120]
[394177655,1763355045199,-151.0,0.00038464,120]
[394177656,1763355045210,-151.0,0.00038464,120]
[394177657,1763355045221,-151.0,0.00038464,120]
[394177658,1763355045230,-151.0,0.00038464,120]
[394177659,1763355045239,-151.0,0.00038464,120]
[394177660,1763355045249,-151.0,0.00038464,120]
[394177661,1763355045259,-151.0,0.00038464,120]
[394177662,1763355045268,-151.0,0.00038464,120]
[394177663,1763355045277,-151.0,0.00038464,120]
[394177664,1763355045287,-206.521111,0.00038464,7]
[394177665,1763355045296,-206.521111,0.00038464,7]
[394177666,1763355045306,-206.521111,0.00038464,7]
[394177667,1763355045316,-206.521111,0.00038464,7]
[394177668,1763355045325,-206.521111,0.00038464,7]
[394177669,1763355045335,-206.521111,0.00038464,7]
[394177670,1763355045346,-206.521111,0.00038464,7]
[394177671,1763355045355,-206.521111,0.00038464,7]
[394177672,1763355045364,-206.521111,0.00038464,7]
[394177673,1763355045374,-206.521111,0.00038464,7]
[394177674,1763355045384,-206.521111,0.00038464,7]
[394177675,1763355045394,-206.521114,0.00038464,7]
[394177676,1763355045403,-202.398932,0.00038464,120]
[394177677,1763355045413,-202.398932,0.00038464,120]
[394177678,1763355045422,-202.398932,0.00038464,120]
[394177679,1763355045433,-151.0,0.00038464,120]
[394177680,1763355045442,-151.0,0.00038464,120]
[394177681,1763355045453,-151.0,0.00038464,120]
[394177682,1763355045462,-202.398932,0.00038464,120]
[394177683,1763355045471,-202.398932,0.00038464,120]
[394177684,1763355045481,-202.398932,0.00038464,120]
[394177685,1763355045491,-151.0,0.00038464,120]
[394177686,1763355045500,-151.0,0.00038464,120]
[394177687,1763355045509,-289.870986,0.00038464,120]
[394177688,1763355045518,-202.398932,0.00038464,120]
[394177689,1763355045528,-202.398932,0.00038464,120]
[394177690,1763355045539,-202.398932,0.00038464,120]
[394177691,1763355045548,-202.398932,0.00038464,120]
[394177692,1763355045557,-202.398932,0.00038464,120]
[394177693,1763355045567,-202.398932,0.00038464,120]
[394177694,1763355045637,-151.0,0.00038464,120]
[394177695,1763355045646,-155.218597,0.00038464,120]
[394177696,1763355045655,-151.0,0.00038464,120]
[394177697,1763355045665,-151.0,0.00038464,120]
[394177698,1763355045674,-151.0,0.00038464,120]
[394177699,1763355045683,-151.0,0.00038464,120]
[394177700,1763355045693,-151.0,0.00038464,120]
[394177701,1763355045704,-151.0,0.00038464,120]
[394177702,1763355045714,-2000.0,0.00038464,20]
[394177703,1763355045723,-151.0,0.00038464,120]
[394177704,1763355045733,-151.0,0.00038464,120]
[394177705,1763355045743,-153.925168,0.00038464,120]
[394177706,1763355045752,-151.0,0.00038464,120]
[394177707,1763355045762,-151.0,0.00038464,120]
[394177708,1763355045771,-151.0,0.00038464,120]
[394177709,1763355045780,-151.0,0.00038464,120]
[394177710,1763355045789,-151.0,0.00038464,120]
[394177711,1763355045798,-151.0,0.00038464,120]
[394177712,1763355045807,-151.0,0.00038464,120]
[394177713,1763355045817,-151.0,0.00038464,120]
[394177714,1763355045827,-151.0,0.00038464,120]
[394177715,1763355045839,-151.0,0.00038464,120]
[394177716,1763355045849,-156.476949,0.00038464,120]
[394177717,1763355045860,-151.0,0.00038464,120]
[394177718,1763355045872,-151.0,0.00038464,120]
[394177719,1763355045884,-151.0,0.00038464,120]
[394177720,1763355045895,-151.0,0.00038464,120]
[394177721,1763355045906,-185.477875,0.00038464,120]
[394177722,1763355045917,-151.0,0.00038464,120]
[394177723,1763355045928,-151.0,0.00038464,120]
[394177724,1763355045939,-49217.82557293,0.00038464,2]
[394177725,1763355045949,-6521.52871463,0.00038464,7]
[394177726,1763355045959,-22836.73097199,0.00038464,2]
[394177727,1763355045970,-329.5150984,0.00038464,2]
[394177728,1763355045979,-294.08436073,0.00038464,2]
[394177729,1763355045989,-52115.93159782,0.00038464,2]
[394177730,1763355045999,-642.12854692,0.00038464,2]
[394177731,1763355046007,-1372.28526986,0.00038464,2]
[394177732,1763355046016,-157.82105744,0.00038464,2]
[394177733,1763355046026,-707.93859857,0.00038464,2]
[394177734,1763355046037,-21737.93029217,0.00038464,2]
[394177735,1763355046048,-6345.23184077,0.00038464,2]
[394177736,1763355046058,-158.82803859,0.00038464,2]
[394177737,1763355046068,-112771.82601968,0.00038464,2]
[394177738,1763355046078,-1730.39321439,0.00038464,2]
[394177739,1763355046087,-2092.49870536,0.00038464,2]
[394177740,1763355046097,-7537.4767261,0.00038464,2]
[394177741,1763355046106,-19066.59982915,0.00038464,2]
[394177742,1763355046115,-33814.29232122,0.00038464,7]
[394177743,1763355046126,-511.55834399,0.00038464,2]
[394177744,1763355046140,-180.70231849,0.00038464,2]
[394177745,1763355046151,-471.51579805,0.00038464,2]
[394177746,1763355046162,-30677.90389143,0.00038464,2]
[394177747,1763355046173,-190.61639876,0.00038464,2]
[394177748,1763355046182,-994.70560896,0.00038464,2]
[394177749,1763355046191,-1407.61455951,0.00038464,2]
[394177750,1763355046202,-5940.97878884,0.00038464,2]
[394177751,1763355046212,-10763.11341863,0.00038464,2]
[394177752,1763355046223,-656.17277766,0.00038464,2]
[394177753,1763355046233,-204.52346373,0.00038464,2]
[394177754,1763355046242,-2920.0,0.00038464,2]
[394177755,1763355046252,-1459.76961614,0.00038464,2]
[394177756,1763355046262,-387.79347195,0.00038464,2]
[394177757,1763355046272,-202.88784774,0.00038464,2]
[394177758,1763355046282,-3170.98363563,0.00038464,2]
[394177759,1763355046291,-167.84537407,0.00038464,2]
[394177760,1763355046300,-367.42286999,0.00038464,2]
[394177761,1763355046310,-178470.46004516,0.00038464,2]
[394177762,1763355046321,-151.491526,0.00038464,2]
[394177763,1763355046332,-260.51543627,0.00038464,2]
[394177764,1763355046341,-58500.0,0.00038464,2]
[394177765,1763355046351,-31669.24684564,0.00038464,7]
[394177766,1763355046360,-618.0,0.00038464,2]
[394177767,1763355046371,-1673.1478066,0.00038464,2]
[394177768,1763355046381,-326.14499269,0.00038464,2]
[394177769,1763355046391,-81358.08110999,0.00038464,7]
[394177770,1763355046400,-16243.0677831,0.00038464,2]
[394177771,1763355046409,-151.0,0.00038465,120]
[394177772,1763355046419,-153.48472,0.00038465,120]
[394177773,1763355046428,-151.0,0.00038465,120]
[394177774,1763355046439,-151.0,0.00038465,120]
[394177775,1763355046449,-152.884796,0.00038465,120]
[394177776,1763355046458,-151.0,0.00038465,120]
[394177777,1763355046467,-151.0,0.00038465,120]
[394177778,1763355046478,-151.0,0.00038465,120]
[394177779,1763355046488,-151.0,0.00038465,120]
[394177780,1763355046497,-151.0,0.00038465,120]
[394177781,1763355046506,-151.0,0.00038465,120]
[394177782,1763355046515,-151.0,0.00038465,120]
[394177783,1763355046524,-194.361192,0.00038465,120]
[394177784,1763355046533,-152.418207,0.00038465,120]
[394177786,1763355046542,-151.0,0.00038465,60]
[394177787,1763355046551,-151.0,0.00038465,30]
[394177788,1763355046560,-156.241144,0.00038465,30]
[394177789,1763355046570,-151.0,0.00038465,120]
[394177790,1763355046579,-151.0,0.00038465,120]
[394177791,1763355046588,-151.0,0.00038465,120]
[394177792,1763355046597,-151.0,0.00038465,120]
[394177794,1763355046606,-151.470655,0.00038465,120]
[394177795,1763355046616,-151.0,0.00038465,120]
[394177796,1763355046625,-205.479447,0.00038465,120]
[394177797,1763355046635,-151.0,0.00038465,120]
[394177798,1763355046643,-205.479447,0.00038465,120]
[394177799,1763355046653,-151.0,0.00038465,120]
[394177801,1763355046662,-205.479447,0.00038465,120]
[394177802,1763355046671,-151.0,0.00038465,120]
[394177803,1763355046680,-205.479447,0.00038465,120]
[394177804,1763355046689,-151.0,0.00038465,120]
[394177805,1763355046698,-205.479447,0.00038465,120]
[394177806,1763355046707,-168.308839,0.00038465,120]
[394177808,1763355046716,-205.479447,0.00038465,120]
[394177810,1763355046725,-205.479447,0.00038465,120]
[394177811,1763355046734,-205.479447,0.00038465,120]
[394177812,1763355046743,-205.479447,0.00038465,120]
[394177813,1763355046752,-205.479447,0.00038465,120]
[394177814,1763355046762,-205.479447,0.00038465,120]
[394177815,1763355046772,-205.479447,0.00038465,120]
[394177816,1763355046783,-151.0,0.00038465,120]
[394177817,1763355046792,-151.0,0.00038465,120]
[394177818,1763355046802,-151.0,0.00038465,120]
[394177819,1763355046812,-162.920668,0.00038465,120]
[394177820,1763355046822,-151.0,0.00038465,120]
[394177821,1763355046833,-151.0,0.00038465,120]
[394177822,1763355046843,-271.67134,0.00038465,120]
[394177823,1763355046852,-271.67134,0.00038465,120]
[394177824,1763355046862,-271.67134,0.00038465,120]
[394177825,1763355046872,-271.67134,0.00038465,120]
[394177826,1763355046882,-271.67134,0.00038465,120]
[394177827,1763355046893,-271.67134,0.00038465,120]
[394177828,1763355046903,-271.67134,0.00038465,120]
[394177829,1763355046914,-271.67134,0.00038465,120]
[394177830,1763355046925,-271.67134,0.00038465,120]
[394177831,1763355046936,-271.67134,0.00038465,120]
[394177832,1763355047007,-271.67134,0.00038465,120]
[394177833,1763355047016,-271.67134,0.00038465,120]
[394177834,1763355047028,-151.0,0.00038465,120]
[394177835,1763355047039,-153.844267,0.00038465,120]
[394177836,1763355047050,-251.495585,0.00038465,120]
[394177837,1763355047060,-251.495585,0.00038465,120]
[394177838,1763355047070,-251.495585,0.00038465,120]
[394177839,1763355047081,-251.495585,0.00038465,120]
[394177840,1763355047090,-251.495585,0.00038465,120]
[394177841,1763355047099,-251.495585,0.00038465,120]
[394177842,1763355047109,-251.495585,0.00038465,120]
[394177843,1763355047122,-251.495585,0.00038465,120]
[394177844,1763355047135,-251.495585,0.00038465,120]
[394177845,1763355047144,-251.495585,0.00038465,120]
[394177846,1763355047155,-251.495585,0.00038465,120]
[394177847,1763355047166,-251.495585,0.00038465,120]
[394177848,1763355047176,-151.0,0.00038465,120]
[394177849,1763355047188,-151.0,0.00038465,120]
[394177850,1763355047197,-151.0,0.00038465,120]
[394177851,1763355047208,-151.0,0.00038465,120]
[394177852,1763355047219,-151.0,0.00038465,120]
[394177853,1763355047229,-151.0,0.00038465,120]
[394177854,1763355047239,-151.0,0.00038465,120]
[394177855,1763355047249,-151.0,0.00038465,120]
[394177856,1763355047260,-151.0,0.00038465,120]
[394177857,1763355047270,-151.0,0.00038465,120]
[394177858,1763355047279,-151.0,0.00038465,120]
[394177859,1763355047290,-155.183638,0.00038465,120]
[394177860,1763355047300,-151.0,0.00038465,120]
[394177861,1763355047310,-151.0,0.00038465,120]
[394177862,1763355047320,-234.763452,0.00038465,120]
[394177863,1763355047330,-151.0,0.00038465,120]
[394177864,1763355047341,-151.0,0.00038465,120]
[394177865,1763355047350,-151.0,0.00038465,120]
[394177866,1763355047361,-227.49909,0.00038465,120]
[394177867,1763355047371,-227.49909,0.00038465,120]
[394177868,1763355047381,-151.0,0.00038465,120]
[394177869,1763355047391,-151.0,0.00038465,120]
[394177870,1763355047401,-203.592751,0.00038465,120]
[394177871,1763355047410,-227.49909,0.00038465,120]
[394177872,1763355047419,-227.49909,0.00038465,120]
[394177873,1763355047429,-227.49909,0.00038465,120]
[394177874,1763355047438,-227.49909,0.00038465,120]
[394177875,1763355047452,-227.49909,0.00038465,120]
[394177876,1763355047462,-227.49909,0.00038465,120]
[394177877,1763355047471,-227.49909,0.00038465,120]
[394177878,1763355047480,-227.49909,0.00038465,120]
[394177879,1763355047489,-227.49909,0.00038465,120]
[394177880,1763355047498,-227.49909,0.00038465,120]
[394177881,1763355047507,-186.367292,0.00038465,120]
[394177882,1763355047516,-186.367292,0.00038465,120]
[394177883,1763355047526,-186.367292,0.00038465,120]
[394177884,1763355047535,-186.367292,0.00038465,120]
[394177885,1763355047544,-186.367292,0.00038465,120]
[394177886,1763355047553,-186.367292,0.00038465,120]
[394177887,1763355047562,-186.367292,0.00038465,120]
[394177888,1763355047572,-186.367292,0.00038465,120]
[394177889,1763355047581,-186.367292,0.00038465,120]
[394177890,1763355047590,-186.367292,0.00038465,120]
[394177891,1763355047600,-186.367292,0.00038465,120]
[394177892,1763355047609,-186.367292,0.00038465,120]
[394177893,1763355047618,-151.0,0.00038465,120]
[394177894,1763355047627,-151.0,0.00038465,120]
[394177895,1763355047636,-151.0,0.00038465,120]
[394177896,1763355047647,-151.0,0.00038465,120]
[394177897,1763355047657,-151.0,0.00038465,120]
[394177898,1763355047667,-151.0,0.00038465,120]
[394177899,1763355047678,-252.058813,0.00038465,120]
[394177900,1763355047687,-151.0,0.00038465,90]
[394177901,1763355047697,-151.0,0.00038465,90]
[394177902,1763355047707,-151.0,0.00038465,90]
[394177903,1763355047716,-151.0,0.00038465,120]
[394177904,1763355047726,-151.0,0.00038465,120]
[394177905,1763355047735,-151.0,0.00038465,120]
[394177906,1763355047744,-160.771968,0.00038465,120]
[394177907,1763355047756,-151.0,0.00038465,120]
[394177908,1763355047766,-151.0,0.00038465,2]
[394177909,1763355047777,-151.0,0.00038465,2]
[394177910,1763355047787,-151.0,0.00038465,2]
[394177911,1763355047797,-151.0,0.00038465,2]
[394177912,1763355047807,-151.0,0.00038465,2]
[394177913,1763355047816,-151.0,0.00038465,2]
[394177914,1763355047826,-151.0,0.00038465,2]
[394177915,1763355047835,-151.0,0.00038465,2]
[394177916,1763355047845,-151.0,0.00038465,2]
[394177917,1763355047855,-151.0,0.00038465,120]
[394177918,1763355047865,-151.0,0.00038465,120]
[394177919,1763355047877,-151.0,0.00038465,2]
[394177920,1763355047887,-153.79913,0.00038465,120]
[394177921,1763355047896,-151.0,0.00038465,120]
[394177922,1763355047905,-300.480475,0.00038465,2]
[394177923,1763355047914,-151.0,0.00038465,120]
[394177924,1763355047924,-151.0,0.00038465,120]
[394177925,1763355047933,-151.0,0.00038465,120]
[394177926,1763355047943,-151.0,0.00038465,120]
[394177927,1763355047952,-151.0,0.00038465,120]
[394177928,1763355047962,-151.0,0.00038465,120]
[394177929,1763355047971,-151.0,0.00038465,120]
[394177930,1763355047980,-224.738627,0.00038465,120]
[394177931,1763355047990,-151.0,0.00038465,120]
[394177932,1763355047999,-151.0,0.00038465,120]
[394177933,1763355048008,-261.583903,0.00038465,120]
[394177934,1763355048017,-153.19767,0.00038465,120]
[394177935,1763355048026,-157.171853,0.00038465,120]
[394177936,1763355048036,-151.0,0.00038465,15]
[394177937,1763355048045,-151.0,0.00038465,15]
[394177938,1763355048055,-151.0,0.00038465,15]
[394177939,1763355048064,-151.0,0.00038465,15]
[394177940,1763355048074,-151.0,0.00038465,15]
[394177941,1763355048083,-151.0,0.00038465,15]
[394177942,1763355048092,-151.0,0.00038465,120]
[394177943,1763355048102,-151.0,0.00038465,120]
[394177944,1763355048111,-151.0,0.00038465,120]
[394177945,1763355048120,-151.0,0.00038465,120]
[394177946,1763355048133,-151.0,0.00038465,120]
[394177947,1763355048142,-151.0,0.00038465,120]
[394177948,1763355048152,-151.0,0.00038465,120]
[394177949,1763355048162,-151.0,0.00038465,120]
[394177950,1763355048172,-151.0,0.00038465,120]
[394177951,1763355048181,-151.0,0.00038465,120]
[394177952,1763355048191,-271.145735,0.00038465,120]
[394177953,1763355048201,-151.0,0.00038465,120]
[394177954,1763355048272,-151.0,0.00038465,120]
[394177955,1763355048284,-151.0,0.00038465,120]
[394177956,1763355048294,-151.0,0.00038465,120]
[394177957,1763355048303,-151.0,0.00038465,120]
[394177958,1763355048314,-252.557625,0.00038465,120]
[394177959,1763355048323,-151.0,0.00038465,120]
[394177960,1763355048333,-252.557625,0.00038465,120]
[394177961,1763355048343,-252.557625,0.00038465,120]
[394177962,1763355048352,-151.0,0.00038465,120]
[394177963,1763355048363,-151.0,0.00038465,120]
[394177964,1763355048373,-151.0,0.00038465,120]
[394177965,1763355048384,-252.557625,0.00038465,120]
[394177966,1763355048394,-252.557625,0.00038465,120]
[394177967,1763355048404,-252.557625,0.00038465,120]
[394177968,1763355048415,-151.0,0.00038465,120]
[394177969,1763355048426,-151.0,0.00038465,120]